[Event "CEZ Chess Trophy 2022"]
[Site "Prague"]
[Date "2022.06.02"]
[Round "10.1"]
[White "Narayanan.S.L"]
[Black "Navara, David"]
[Result "1/2-1/2"]
[ECO "D46"]
[WhiteElo "2662"]
[BlackElo "2682"]
[Annotator "TA"]
[PlyCount "62"]
[EventDate "2022.05.31"]
[EventType "match"]
[EventCountry "CZE"]
[SourceTitle "playchess.com"]
[Source "ChessBase"]
[SourceQuality "1"]
[TimeControl "900+10"]

{[%evp 21,62,8,14,13,12,0,21,8,10,0,37,22,14,11,12,11,17,0,12,0,2,-13,-22,-16,-12,-38,-30,-45,0,0,0,0,0,0,0,0,0,0,0,0,0,0,0]} 1. Nf3 {[%emt 0:00:03]} d5 {[%emt 0:00:01]} 2. d4 {[%emt 0:00:02]} Nf6 {[%emt 0:00:01]} 3. c4 {[%emt 0:00:01]} c6 {[%emt 0:00:01]} 4. Nc3 {[%emt 0:00:01]} e6 {[%emt 0:00:02]} 5. e3 {[%emt 0:00:01]} Nbd7 {[%emt 0:00:01]} 6. Qc2 {[%emt 0:00:01]} Bd6 {[%emt 0:00:03]} 7. Be2 {[%emt 0:00:05][%cal Bf1e2,Be2c4,Bc4d3][%mdl 32]} O-O {[%emt 0:00:19]} 8. O-O {[%emt 0:00:05]} dxc4 {[%emt 0:00:01]} 9. Bxc4 {[%emt 0:00:03]} b5 {[%emt 0:00:02]} 10. Bd3 {[%emt 0:00:02]} Bb7 {[%emt 0:00:15]} 11. e4 {[%emt 0:00:01]} e5 {[%emt 0:00:06]} 12. h3 {[%emt 0:00:02] D46: Semi-Slav: 5 e3 Nbd7 6 Bd3, Black avoids the Meran.} a6 {[%emt 0:02:22]} 13. dxe5 {[%emt 0:00:48]} Nxe5 {[%emt 0:00:03]} 14. Nxe5 {[%emt 0:00:02]} Bxe5 {[%emt 0:00:02]} 15. Be3 {[%emt 0:00:03]} Qe7 {[%emt 0:02:30]} 16. Ne2 {[%emt 0:01:25]} (16. f4 $5 {[%cal Rf4e5]} Bxc3 17. bxc3 $11) 16... Bd6 {[%emt 0:00:03]} 17. Nd4 {[%emt 0:00:44]} g6 {[%emt 0:00:05] [#] Inhibits Nf5.} 18. Nb3 $146 {[%emt 0:02:58] Prevents c5.} ({Much worse is} 18. Nxc6 Bxc6 19. Qxc6 Rfc8 $15) ({Predecessor:} 18. Nf3) 18... Rad8 {[%emt 0:00:07]} ({Don't take} 18... Qe5 19. f4 Qe7 20. Bd4 $16) 19. Nc5 {[%emt 0:01:32]} Bc8 {[%emt 0:00:01]} 20. b4 {[%emt 0:00:12]} Nd7 {[%emt 0:01:24]} 21. f4 {[%emt 0:00:09]} Nxc5 {[%emt 0:00:23]} 22. bxc5 {[%emt 0:00:03]} Bc7 {[%emt 0:00:02]} 23. Rae1 {[%emt 0:00:08]} Qh4 {[%emt 0:00:49]} 24. e5 {[%emt 0:01:47] [#]} Bxh3 $1 {[%emt 0:03:37]} 25. gxh3 {[%emt 0:00:01] Hoping for Kh2. The position is equal.} Qg3+ {[%emt 0:00:05]} 26. Kh1 {[%emt 0:00:02][%cal Od3f5]} Qxh3+ {[%emt 0:00:02]} 27. Kg1 {[%emt 0:00:02] Be4 is the strong threat.} Qg3+ {[%emt 0:00:15]} 28. Kh1 {[%emt 0:00:01] [#] And now Be4 would win.} Rxd3 {[%emt 0:00:05]} 29. Qxd3 {[%emt 0:00:01] Strongly threatening Qd7. The board is on fire.} Qh3+ {[%emt 0:00:02]} 30. Kg1 {[%emt 0:00:01] Black must now prevent Qe4.} Qg3+ {[%emt 0:00:02]} 31. Kh1 {[%emt 0:00:01] Threatens to win with Qd7.} Qh3+ {[%emt 0:00:01] Weighted Error Value: White=0.09 (flawless) /Black=0.06 (flawless)} 1/2-1/2

[Event "CEZ Chess Trophy 2022"]
[Site "Prague"]
[Date "2022.06.02"]
[Round "11.1"]
[White "Narayanan.S.L"]
[Black "Navara, David"]
[Result "1-0"]
[ECO "B90"]
[WhiteElo "2662"]
[BlackElo "2682"]
[Annotator "TA"]
[PlyCount "50"]
[EventDate "2022.05.31"]
[EventType "match"]
[EventCountry "CZE"]
[SourceTitle "playchess.com"]
[Source "ChessBase"]
[SourceQuality "1"]
[TimeControl "900+10"]

{[%evp 9,50,21,21,0,8,18,20,5,25,22,23,23,22,45,258,7,24,17,265,267,278,272,275,265,569,538,933,328,316,187,183,181,191,181,181,166,275,203,187,186,184,132,204]} 1. e4 {[%emt 0:12:19]} c5 {[%emt 0:12:22]} 2. Ne2 {[%emt 0:00:10]} Nf6 {[%emt 0:00:12]} 3. Nbc3 {[%emt 0:00:10]} d6 {[%emt 0:00:11]} 4. d4 {[%emt 0:00:12]} cxd4 {[%emt 0:00:09]} 5. Nxd4 {[%emt 0:00:10]} a6 {[%emt 0:00:09]} 6. Qd3 {[%emt 0:00:09] B90: Sicilian Najdorf: Unusual White 6th moves, 6 Be3 Ng4 and 6 Be3 e5.} Nbd7 {[%emt 0:00:21]} 7. Be2 {[%emt 0:00:10]} g6 {[%emt 0:00:52] 7...b5 is the fancy move.} 8. Bg5 {[%emt 0:00:18] The position is equal.} Bg7 {[%emt 0:00:11]} 9. O-O-O $1 {[%emt 0:00:10]} h6 {[%emt 0:00:35]} 10. Bh4 {[%emt 0:00:15]} Qc7 {[%emt 0:00:25]} 11. f4 {[%emt 0:00:17][%cal Oe4e5,Bf2f4,Bf4e5][%mdl 32] [#] Hoping for e5!} b5 $146 {[%emt 0:00:10]} ({Better is} 11... O-O $14) ({Predecessor:} 11... e5 12. Ndb5 axb5 13. Nxb5 Qc5 14. Nxd6+ Ke7 15. Qb3 Rf8 16. Rd5 Qb6 17. Nxc8+ Rfxc8 18. Rxd7+ Kxd7 19. Qxb6 Rxa2 20. Qxb7+ Rc7 21. Rd1+ {1-0 (21) Chrzaszcz,M (1996)-Reichel,L (1760) Sypniewo 2021}) 12. Bf3 $2 {[%emt 0:00:28]} (12. e5 $1 $18 {[%cal Re5f6]} dxe5 13. Ne6 $1 fxe6 14. Qxg6+ Kf8 15. Bxf6 Nxf6 16. fxe5) 12... Bb7 $1 $11 {[%emt 0:00:20]} 13. Rhe1 $36 {[%emt 0:01:01][%cal Oe4e5][%mdl 2048] White is pushing.} Rc8 $2 {[%emt 0:00:17]} (13... O-O $1 $11 {and Black is okay.}) 14. e5 $1 $18 {[%emt 0:00:13]} dxe5 {[%emt 0:01:04]} 15. fxe5 {[%emt 0:00:16]} (15. Bxb7 Qxb7 16. fxe5 Nc5 $14) 15... Nc5 {[%emt 0:00:09]} 16. Qe2 {[%emt 0:00:16]} Bxf3 $2 {[%emt 0:00:15]} (16... Ng8 {is a better chance.} 17. Nd5 Qa5) 17. Qxf3 {[%emt 0:00:33]} Nfd7 {[%emt 0:00:13]} 18. Bxe7 $2 {[%emt 0:00:10]} Nxe5 {[%emt 0:00:11] [#]} 19. Bf6 {[%emt 0:00:11]} (19. Ndxb5 $142 $1 {[%mdl 512]} axb5 20. Bd6 (20. Bf6 O-O $17)) 19... O-O {[%emt 0:00:10]} 20. Rxe5 {[%emt 0:00:10]} Bxf6 {[%emt 0:00:10]} 21. Rxc5 {[%emt 0:00:10]} ({Stronger than} 21. Qxf6 Nd7 22. Ne6 Qxe5 23. Qxe5 Nxe5 24. Nxf8 Kxf8 $11) 21... Qxc5 {[%emt 0:00:11]} 22. Qxf6 {[%emt 0:00:11] aiming for Ne4.} Rfd8 {[%emt 0:00:10]} (22... Rfe8 $142 23. Qf3 (23. Qxa6 b4 $16) 23... Red8) 23. a3 {[%emt 0:00:26] Black must now prevent Ne4.} ({Weaker is} 23. Qxa6 b4 24. Nce2 (24. Ne4 Qc7 $16) 24... Qd5 $16) 23... Rd6 {[%emt 0:00:10] White is clearly better.} 24. Qf4 {[%emt 0:00:14]} Rcd8 {[%emt 0:00:08][%cal Rd6d4]} 25. Nce2 {[%emt 0:00:14]} (25. Nf3 $18) 25... Kg7 {[%emt 0:00:14] Weighted Error Value: White=0.52/Black=0.55} (25... a5 $16 26. Kb1 b4) 1-0

[Event "CEZ Chess Trophy 2022"]
[Site "Prague"]
[Date "2022.06.02"]
[Round "12.1"]
[White "Navara, David"]
[Black "Narayanan.S.L"]
[Result "1-0"]
[ECO "C44"]
[WhiteElo "2682"]
[BlackElo "2662"]
[Annotator "TA"]
[PlyCount "131"]
[EventDate "2022.05.31"]
[EventType "match"]
[EventCountry "CZE"]
[SourceTitle "playchess.com"]
[Source "ChessBase"]
[SourceQuality "1"]
[TimeControl "900+10"]

{[%evp 13,131,0,0,-16,0,0,0,9,24,24,22,15,16,7,17,14,18,16,20,0,0,0,37,28,33,30,18,-27,-35,-50,-40,-142,-131,-188,-206,-215,-222,-208,-131,-266,-268,-252,-247,-257,-210,-598,-176,-172,-175,-183,-183,-173,-193,-213,-121,-125,-132,-127,0,-80,60,-206,-83,-116,-79,-325,-153,-29983,-64,-66,-83,-69,-50,-79,0,-120,0,0,0,-55,0,-295,0,0,0,0,0,0,0,-49,-52,-117,25,-189,0,0,0,0,0,0,29984,29985,29985,29986,29986,29987,29990,29991,29991,0,2221,0,29991,29992,29995,29996,29996,29997,29997,29998]} 1. e4 {[%emt 0:12:17]} e5 {[%emt 0:12:17]} 2. Nf3 {[%emt 0:00:09]} Nc6 {[%emt 0:00:09]} 3. g3 {[%emt 0:00:09]} Nf6 {[%emt 0:00:16]} 4. d3 {[%emt 0:00:09]} Bc5 {[%emt 0:00:12]} 5. Bg2 {[%emt 0:00:11]} O-O {[%emt 0:00:12]} 6. O-O {[%emt 0:00:18]} d5 {[%emt 0:00:12]} 7. exd5 {[%emt 0:00:11]} Nxd5 {[%emt 0:00:09]} 8. a3 $5 {[%emt 0:00:39][%mdl 4] An interesting side line. C44: Ponziani Opening and Scotch Gambit.} a5 {[%emt 0:00:10] Against b4} 9. Re1 {[%emt 0:00:09]} Re8 {[%emt 0:00:09]} 10. Nc3 {[%emt 0:00:10] The position is equal.} Nxc3 {[%emt 0:00:25]} 11. bxc3 {[%emt 0:00:09] [#]} Bg4 $146 {[%emt 0:00:11][%cal Oe5e4]} ({Predecessor:} 11... Bf8 12. Nd2 Bd7 13. Rb1 b6 14. Ne4 h6 15. c4 Nd4 16. Bb2 Bc6 17. Nc3 Bxg2 18. Kxg2 {0-1 (50) Rubinetti,J (2441)-Labollita,M (2261) Mar del Plata 2000}) 12. h3 {[%emt 0:00:13]} Bh5 {[%emt 0:00:09]} 13. g4 {[%emt 0:00:22]} Bg6 {[%emt 0:00:10]} 14. Ng5 {[%emt 0:00:09] Prevents e4.} h6 {[%emt 0:00:10]} 15. Ne4 {[%emt 0:00:10]} Bb6 {[%emt 0:00:10]} 16. Rb1 {[%emt 0:00:37]} Rb8 {[%emt 0:00:11]} 17. a4 {[%emt 0:00:14]} Kh8 {[%emt 0:00:10]} 18. Qf3 {[%emt 0:00:19]} (18. g5 {seems wilder.} hxg5 19. Qg4 f5 20. Qxg5 Re6 21. Ng3) 18... Qd7 {[%emt 0:00:55]} 19. Be3 {[%emt 0:01:10]} (19. g5 {feels hotter.} hxg5 20. Bxg5 Qe6 21. Be3) 19... Bxe3 {[%emt 0:00:21]} 20. fxe3 {[%emt 0:00:13]} Nd8 {[%emt 0:00:19][%cal Bc6d8,Bd8b7,Bb7d6][%mdl 32]} 21. Rb5 {[%emt 0:00:20]} b6 {[%emt 0:00:12]} 22. h4 {[%emt 0:00:10]} (22. Qg3 $15) 22... Nb7 $1 $17 {[%emt 0:00:14]} 23. Ng3 {[%emt 0:00:26]} (23. g5 $17) 23... Nd6 $19 {[%emt 0:00:10]} 24. Rb2 {[%emt 0:00:12]} e4 {[%emt 0:00:13]} (24... Qxa4 25. e4 $17) 25. Qf4 {[%emt 0:00:11]} exd3 {[%emt 0:00:18]} 26. h5 {[%emt 0:00:09]} (26. cxd3 $17 Bxd3 27. g5) 26... d2 {[%emt 0:00:22]} 27. Rd1 {[%emt 0:00:08]} Bh7 {[%emt 0:00:08]} 28. Rxd2 {[%emt 0:00:09]} Qe7 {[%emt 0:00:09]} 29. Bc6 $2 {[%emt 0:00:10] [#]} (29. Re2 {is a better chance.}) 29... Red8 $2 {[%emt 0:00:09]} (29... Nc4 $1 {[%mdl 512]} 30. Qxc4 (30. Bxe8 $2 Rxe8 31. Rf2 Nxb2 $19) 30... Qxe3+ 31. Rf2 Qxg3+ 32. Kf1 Re6) 30. Rb1 {[%emt 0:00:12]} Rf8 {[%emt 0:00:40]} 31. Rbd1 {[%emt 0:00:09]} f5 {[%emt 0:00:15]} 32. Rxd6 {[%emt 0:00:10]} cxd6 {[%emt 0:00:13]} 33. gxf5 {[%emt 0:00:09]} Rbc8 {[%emt 0:00:17]} ({Black should try} 33... Qe5 $19 {[%cal Rh7f5]} 34. Be4 Qxf4 35. exf4 Rbd8) 34. Rxd6 $17 {[%emt 0:00:10]} Rf6 {[%emt 0:00:09]} 35. Rd7 {[%emt 0:00:11]} Qc5 {[%emt 0:00:11]} (35... Qa3 $17 36. Qg4 Qc1+ 37. Nf1 Rg8) 36. Be4 {[%emt 0:00:13]} (36. Bb7 $1 $11 Bxf5 37. Rd5) 36... Bg8 {[%emt 0:00:22]} ({Better is} 36... Rff8 $17) 37. Qg4 $2 {[%emt 0:00:10][%mdl 8192]} (37. Bb7 $14 {stays ahead.}) 37... Bf7 {[%emt 0:00:12]} (37... Qxe3+ $19 38. Kg2 Bf7) 38. Kf2 {[%emt 0:00:09]} Re8 {[%emt 0:00:12]} 39. Ne2 $2 {[%emt 0:00:11]} (39. Qf4 $17 {was necessary.}) 39... Qe5 {[%emt 0:00:09]} (39... b5 $1 $19 {[%cal Rb5a4] and Black stays clearly on top.} 40. Nd4 (40. axb5 $2 Qxb5 41. Rb7 Qc5 $19) 40... Qe5 41. axb5 Qxe4 42. Qxe4 Rxe4) 40. Kf3 $2 {[%emt 0:00:09] [#]} (40. Ng3 $17) 40... Re7 $2 {[%emt 0:00:11]} (40... Bxh5 $1 {[%mdl 512] mates} 41. Ng3 (41. Qxh5 Qxe4+) 41... Bxg4+ 42. Kxg4 g6 43. Kh3 gxf5 44. Rd5 Qc7 45. Bf3 Rxe3 46. Rd3 Qf4 47. Rd8+ Kh7 48. Rd7+ Kg8 49. Bd5+ Rf7 $3 {[%mdl 512]} 50. Bxf7+ Kf8 51. Rd8+ Kxf7 52. Rd7+ Kg6 53. Rd6+ Qxd6 54. Kh2 Qxg3+ 55. Kh1 Re1#) 41. Rxe7 $15 {[%emt 0:00:10]} Qxe7 {[%emt 0:00:09]} 42. Bd3 {[%emt 0:00:10]} Qb7+ {[%emt 0:00:13][%mdl 1024] Black has compensation.} 43. e4 {[%emt 0:00:10]} Be8 {[%emt 0:00:11]} (43... Rc6 $1 $17) 44. Kf4 {[%emt 0:00:10]} (44. Nf4 $11 {remains equal.}) 44... Bd7 {[%emt 0:00:10]} ({Black should play} 44... Bxa4 $17 {Strongly threatening ...Be8.} 45. Ke3 Qe7) 45. e5 $11 {[%emt 0:00:09] Really sharp!} Qc7 {[%emt 0:00:08]} 46. Qg3 {[%emt 0:00:11]} (46. Nd4 $11) 46... Rf8 {[%emt 0:00:10]} (46... Rc6 $15 47. Qe3 Rc5) 47. c4 $2 {[%emt 0:00:10][%mdl 8192] [#]} (47. Kg4 $1 $11 {and White stays safe.}) 47... Qc8 $2 {[%emt 0:00:12]} ({Inferior is} 47... Bxa4 48. Nc3 Be8 49. Ke3 $17) (47... Bxf5 $1 $19 {[%mdl 512]} 48. Ke3 Be6) 48. Nd4 {[%emt 0:00:10]} Qc5 {[%emt 0:00:09]} 49. Qe3 {[%emt 0:00:09] Active counter play!} Qe7 {[%emt 0:00:09]} 50. Kg4 {[%emt 0:00:10] Inhibits Qg5+.} Re8 {[%emt 0:00:11]} 51. e6 {[%emt 0:00:10]} (51. Nf3 $11) 51... Bxa4 $15 {[%emt 0:00:09]} 52. Nf3 {[%emt 0:00:10] [#]} (52. Nb5 $15) 52... Rd8 {[%emt 0:00:13]} (52... Qc5 $1 $17 {[%cal Rc5e3]} 53. Qxc5 bxc5) 53. Ne5 $2 {[%emt 0:00:09]} (53. Qxb6 $11 Kg8 54. Qxa5) 53... Kg8 $2 {[%emt 0:00:10]} (53... Be8 $19 {Threatens to win with ...a4.} 54. Nf3 a4 55. Qxb6 a3) 54. Ng6 $36 {[%emt 0:00:10][%mdl 2048] White has some pressure.} Qf6 {[%emt 0:00:08]} 55. e7 {[%emt 0:00:09]} Re8 {[%emt 0:00:09]} 56. Be4 {[%emt 0:00:10]} Qg5+ $2 {[%emt 0:00:10][%mdl 8192]} (56... Bd7 $11) 57. Qxg5 {[%emt 0:00:10]} hxg5 {[%emt 0:00:09] KRB-KBN} 58. Bd5+ {[%emt 0:00:09]} Kh7 {[%emt 0:00:08]} 59. Kxg5 {[%emt 0:00:14]} Rc8 {[%emt 0:00:12]} 60. Nf8+ {[%emt 0:00:09]} Kh8 {[%emt 0:00:09]} 61. Ng6+ {[%emt 0:00:10]} (61. h6 $142 Be8 62. hxg7+ Kxg7 63. f6+ Kh8 64. Kh6 Rc7 65. Ng6+ Bxg6 66. Kxg6 Rc8 67. f7 Rc6+ 68. Bxc6 b5 69. f8=Q#) 61... Kh7 $18 {[%emt 0:00:08]} 62. Nf8+ {[%emt 0:00:09]} (62. Be6 $18 Re8 63. Nf8+ Kh8 64. f6 Rxe7 65. fxe7 Be8 66. Bd7 Bf7 67. Ne6) 62... Kh8 {[%emt 0:00:09]} 63. h6 {[%emt 0:00:09] White mates.} gxh6+ {[%emt 0:00:11]} 64. Kxh6 {[%emt 0:00:09][%cal Rf8g6]} Be8 {[%emt 0:00:12]} 65. Ng6+ {[%emt 0:00:09]} Bxg6 {[%emt 0:00:10]} 66. fxg6 {[%emt 0:00:08] Never resign too early!  Weighted Error Value: White=0.82/Black=0.72} 1-0